fUST/lending_fUST_20250225
["ID","MTS","AMOUNT","RATE_DAILY","PERIOD"]
[354416984,1740480629432,-500.0,0.0009315,120]
[354416985,1740480629463,-500.0,0.0009315,120]
[354416986,1740480629496,-500.0,0.0009315,120]
[354416987,1740480629529,-500.0,0.0009315,120]
[354416988,1740480629562,-500.0,0.0009315,120]
[354416989,1740480629595,-531.46,0.0009315,120]
[354416990,1740480629626,-500.0,0.0009315,120]
[354416991,1740480629657,-500.0,0.0009315,120]
[354416992,1740480629689,-9220.63,0.0009315,7]
[354416993,1740480629720,-175.20814449,0.0009315,120]
[354416994,1740480629752,-572.86,0.0009315,120]
[354416995,1740480629783,-500.0,0.0009315,120]
[354416996,1740480629815,-500.0,0.0009315,120]
[354416997,1740480629848,-844.83,0.0009315,120]
[354416998,1740480629878,-500.0,0.0009315,120]
[354416999,1740480629910,-500.0,0.0009315,120]
[354417000,1740480629942,-500.0,0.0009315,120]
[354417001,1740480629975,-500.0,0.0009315,120]
[354417002,1740480630008,-500.0,0.0009315,120]
[354417003,1740480630041,-634.29589946,0.0009315,120]
[354417004,1740480630072,-500.0,0.0009315,120]
[354417005,1740480630104,-1142.33,0.0009315,120]
[354417006,1740480630135,-500.0,0.0009315,120]
[354417007,1740480630165,-500.0,0.0009315,120]
[354417008,1740480630196,-500.0,0.0009315,120]
[354417009,1740480630228,-500.0,0.0009315,120]
[354417010,1740480630260,-500.0,0.0009315,120]
[354417011,1740480630291,-246.075767,0.0009315,120]
[354417012,1740480630322,-500.0,0.0009315,30]
[354417013,1740480630360,-500.0,0.0009315,120]
[354417014,1740480630394,-383.43284134,0.0009315,120]
[354417015,1740480630427,-500.0,0.0009315,120]
[354417016,1740480630459,-500.0,0.0009315,120]
[354417017,1740480630491,-500.0,0.0009315,120]
[354417018,1740480630522,-500.0,0.0009315,120]
[354417019,1740480630553,-500.0,0.0009315,120]
[354417020,1740480630588,-500.0,0.0009315,120]
[354417021,1740480630619,-500.0,0.0009315,120]
[354417022,1740480630650,-500.0,0.0009315,120]
[354417023,1740480630681,-504.60176531,0.0009315,120]
[354417024,1740480630713,-605.76,0.0009315,120]
[354417025,1740480630744,-500.0,0.0009315,120]
[354417026,1740480630775,-500.0,0.0009315,120]
[354417027,1740480630807,-500.0,0.0009315,120]
[354417028,1740480630839,-350.38,0.0009315,120]
[354417029,1740480630871,-500.0,0.0009315,120]
[354417030,1740480630901,-500.0,0.0009315,120]
[354417031,1740480630932,-3079.36,0.0009315,120]
[354417032,1740480630963,-500.0,0.0009315,120]
[354417033,1740480630992,-500.0,0.0009315,120]
[354417034,1740480631024,-500.0,0.0009315,120]
[354417035,1740480631055,-500.0,0.0009315,120]
[354417036,1740480631089,-742.1,0.0009315,120]
[354417037,1740480631121,-500.0,0.0009315,120]
[354417038,1740480631153,-500.0,0.0009315,120]
[354417039,1740480631186,-500.0,0.0009315,120]
[354417040,1740480631221,-504.33498649,0.0009315,120]
[354417042,1740480631253,-500.0,0.0009315,120]
[354417043,1740480631285,-500.0,0.0009315,120]
[354417044,1740480631317,-503.28745639,0.0009315,120]
[354417045,1740480631349,-503.5735996,0.0009315,120]
[354417046,1740480631381,-500.0,0.0009315,120]
[354417047,1740480631413,-500.0,0.0009315,120]
[354417048,1740480631445,-500.0,0.0009315,120]
[354417049,1740480631478,-500.0,0.0009315,3]
[354417051,1740480631511,-500.0,0.0009315,120]
[354417055,1740480631542,-500.0,0.0009315,120]
[354417058,1740480631572,-500.0,0.0009315,120]
[354417059,1740480631605,-646.08,0.0009315,120]
[354417060,1740480631724,-509.93473873,0.0009315,120]
[354417061,1740480631756,-500.0,0.0009315,120]
[354417064,1740480631787,-500.0,0.0009315,120]
[354417069,1740480631819,-500.0,0.0009315,120]
[354417073,1740480631852,-500.0,0.0009315,120]
[354417078,1740480631888,-500.0,0.0009315,120]
[354417083,1740480631920,-500.0,0.0009315,120]
[354417087,1740480631952,-500.0,0.0009315,120]
[354417092,1740480631984,-500.0,0.0009315,120]
[354417096,1740480632019,-500.0,0.0009315,120]
[354417101,1740480632051,-513.21578963,0.0009315,120]
[354417106,1740480632083,-500.0,0.0009315,120]
[354417115,1740480632118,-500.86838248,0.0009315,120]
[354417122,1740480632154,-507.83364902,0.0009315,120]
[354417131,1740480632190,-500.0,0.0009315,120]
[354417140,1740480632222,-500.0,0.0009315,120]
[354417147,1740480632259,-500.0,0.0009315,120]
[354417156,1740480632293,-500.0,0.0009315,120]
[354417164,1740480632326,-500.0,0.0009315,120]
[354417171,1740480632362,-502.32756353,0.0009315,120]
[354417178,1740480632395,-500.0,0.0009315,120]
[354417182,1740480632433,-500.0,0.0009315,120]
[354417187,1740480632469,-500.0,0.0009315,120]
[354417191,1740480632502,-500.0,0.0009315,120]
[354417195,1740480632536,-500.0,0.0009315,120]
[354417199,1740480632569,-500.0,0.0009315,120]
[354417203,1740480632606,-500.0,0.0009315,120]
[354417207,1740480632639,-500.0,0.0009315,120]
[354417212,1740480632674,-500.0,0.0009315,120]
[354417216,1740480632708,-500.0,0.0009315,120]
[354417221,1740480632741,-500.0,0.0009315,120]
[354417225,1740480632773,-500.0,0.0009315,120]
[354417230,1740480632805,-500.0,0.0009315,120]
[354417234,1740480632837,-500.0,0.0009315,120]
[354417239,1740480632872,-507.13233559,0.0009315,120]
[354417243,1740480632906,-500.0,0.0009315,120]
[354417248,1740480632940,-500.0,0.0009315,120]
[354417253,1740480632974,-802.11,0.0009315,120]
[354417257,1740480633005,-632.63,0.0009315,120]
[354417261,1740480633041,-500.0,0.0009315,120]
[354417265,1740480633077,-500.0,0.0009315,120]
[354417269,1740480633117,-840.18,0.0009315,120]
[354417274,1740480633156,-500.0,0.0009315,120]
[354417278,1740480633191,-154.35,0.000932,60]
[354417283,1740480633227,-323.33,0.000932,60]
[354417287,1740480633260,-488.67,0.000932,60]
[354417292,1740480633293,-151.0,0.000974,43]
[354417296,1740480633326,-1243.0,0.0009987,120]
[354417300,1740480633361,-1243.0,0.0009987,120]
[354417305,1740480633395,-1243.0,0.0009987,120]
[354417309,1740480633430,-1243.0,0.0009987,120]
[354417313,1740480633464,-1243.0,0.0009987,120]
[354417318,1740480633498,-1243.0,0.0009987,120]
[354417322,1740480633531,-1243.0,0.0009987,120]
[354417326,1740480633565,-1243.0,0.0009987,120]
[354417331,1740480633599,-1243.0,0.0009987,120]
[354417335,1740480633632,-1243.0,0.0009987,120]
[354417340,1740480633665,-1243.0,0.0009987,120]
[354417342,1740480633697,-1243.0,0.0009987,120]
[354417343,1740480633729,-1243.0,0.0009987,120]
[354417344,1740480633761,-1243.0,0.0009987,120]
[354417345,1740480633794,-1243.0,0.0009987,120]
[354417346,1740480633828,-1243.0,0.0009987,120]
[354417348,1740480633862,-1243.0,0.0009987,120]
[354417353,1740480633895,-1243.0,0.0009987,120]
[354417357,1740480633928,-1243.0,0.0009987,120]
[354417361,1740480633960,-1243.0,0.0009987,120]
[354417366,1740480633994,-164.77609379,0.000999,120]
[354417370,1740480634028,-164.77609379,0.000999,120]
[354417374,1740480634061,-164.77609379,0.000999,120]
[354417379,1740480634099,-164.77609379,0.000999,120]
[354417394,1740480634230,-164.77,0.000999,120]
[354417398,1740480634264,-151.51254309,0.000999,120]
[354417402,1740480634297,-151.51254309,0.000999,120]
[354417407,1740480634331,-151.51254309,0.000999,120]
[354417411,1740480634368,-151.51254309,0.000999,120]
[354417416,1740480634403,-151.51254309,0.000999,120]
[354417420,1740480634436,-151.51254309,0.000999,120]
[354417425,1740480634472,-151.51254309,0.000999,120]
[354417430,1740480634505,-151.51254309,0.000999,120]
[354417434,1740480634537,-151.51254309,0.000999,120]
[354417439,1740480634570,-151.51,0.000999,120]
[354417443,1740480634603,-166.23114187,0.000999,2]
[354417447,1740480634636,-43770.3993579,0.0009999,14]
[354417452,1740480634671,-199999.74390199,0.001,30]
[354417457,1740480634703,-158248.49943015,0.001,120]
[354417564,1740480635720,-10183.11437388,0.00064,30]
[354417566,1740480635732,-8638.76149805,0.00064,30]
[354417568,1740480635743,-761.80063988,0.00064,30]
[354417571,1740480635758,-261.98411354,0.00064,30]
[354417777,1740480637821,-15402.08937465,0.00064,30]
[354417779,1740480637831,-500.0,0.00065753,120]
[354417781,1740480637841,-500.0,0.00065753,120]
[354417784,1740480637851,-500.0,0.00065753,120]
[354417785,1740480637860,-500.0,0.00065753,120]
[354417787,1740480637870,-500.0,0.00065753,120]
[354417789,1740480637879,-500.0,0.00065753,120]
[354417792,1740480637888,-500.0,0.00065753,120]
[354417795,1740480637898,-500.0,0.00065753,120]
[354417797,1740480637907,-500.0,0.00065753,120]
[354417799,1740480637916,-500.0,0.00065753,120]
[354417801,1740480637925,-35247.75,0.000685,30]
[354417803,1740480637935,-154.9769127,0.00072514,60]
[354417805,1740480637944,-713.9661358,0.00072514,60]
[354417807,1740480637953,-159.592814,0.00072514,60]
[354417809,1740480637963,-153.0,0.00072514,60]
[354417811,1740480637972,-774.9129227,0.00072514,60]
[354417813,1740480637981,-841.5,0.0007839,30]
[354417815,1740480637990,-35247.75,0.000784,30]
[354417817,1740480637999,-500.0,0.0009315,120]
[354417819,1740480638011,-522.93,0.0009315,120]
[354417822,1740480638023,-500.0,0.0009315,120]
[354417824,1740480638033,-518.17688282,0.0009315,120]
[354417826,1740480638042,-500.0,0.0009315,120]
[354417829,1740480638052,-500.0,0.0009315,120]
[354417831,1740480638063,-500.0,0.0009315,120]
[354417833,1740480638072,-201.95,0.0009986,120]
[354417835,1740480638081,-168.3,0.0009999,120]
[354417837,1740480638090,-104996.79626186,0.001,120]
[354417838,1740480638104,-151.0,0.001078,80]
[354417840,1740480638113,-258.752487,0.00109589,120]
[354417842,1740480638122,-172.842,0.0011,120]
[354417844,1740480638131,-151.0,0.001181,64]
[354417846,1740480638140,-300.76,0.0012,120]
[354417848,1740480638150,-150.41,0.0012,120]
[354417850,1740480638159,-300.76,0.0012,120]
[354417852,1740480638168,-150.41,0.0012,120]
[354417854,1740480638177,-150.41,0.0012,120]
[354417856,1740480638186,-150.41,0.0012,120]
[354417858,1740480638196,-150.41,0.0012,2]
[354417860,1740480638205,-150.41,0.0012,120]
[354417863,1740480638214,-300.76,0.0012,120]
[354417865,1740480638224,-150.41,0.0012,120]
[354417867,1740480638233,-999.97,0.0012,120]
[354417869,1740480638243,-150.41,0.0012,2]
[354417871,1740480638252,-198.89702018,0.0012,120]
[354417873,1740480638261,-500.0,0.0012,120]
[354417875,1740480638270,-500.0,0.0012,120]
[354417877,1740480638279,-150.41,0.0012,120]
[354417879,1740480638288,-300.76,0.0012,64]
[354417881,1740480638298,-300.76,0.0012,120]
[354417883,1740480638307,-150.41,0.00120274,120]
[354417885,1740480638316,-150.41,0.00120274,120]
[354417887,1740480638325,-150.41,0.00120274,120]
[354417889,1740480638334,-150.41,0.00120274,120]
[354417890,1740480638345,-150.41,0.00120274,120]
[354417892,1740480638355,-150.41,0.00120274,120]
[354417895,1740480638364,-500.0,0.00120274,120]
[354417897,1740480638373,-500.0,0.00120274,120]
[354417899,1740480638383,-217.80955018,0.00120274,120]
[354417900,1740480638392,-291.7546061,0.00120547,120]
[354417902,1740480638401,-500.0,0.00120547,120]
[354417904,1740480638411,-500.0,0.00120547,120]
[354417906,1740480638420,-500.0,0.00120547,120]
[354417908,1740480638429,-239.37613963,0.00120547,120]
[354417910,1740480638439,-500.0,0.00120547,120]
[354417913,1740480638448,-500.0,0.00120547,120]
[354417914,1740480638458,-508.08824037,0.00120547,120]
[354417916,1740480638467,-500.0,0.00120547,120]
[354417918,1740480638476,-513.00518378,0.00120547,120]
[354417921,1740480638485,-748.21,0.00120547,120]
[354417923,1740480638495,-502.28984773,0.00120547,120]
[354417925,1740480638504,-500.0,0.00120547,120]
[354417927,1740480638513,-500.0,0.00120547,120]
[354417929,1740480638522,-500.0,0.00120547,120]
[354417931,1740480638531,-600.0,0.00120547,120]
[354417933,1740480638541,-500.0,0.00120547,120]
[354417935,1740480638550,-358.28638197,0.00120547,120]
[354417937,1740480638560,-500.0,0.00120547,120]
[354417939,1740480638569,-500.0,0.00120547,120]
[354417941,1740480638578,-981.13,0.00120547,120]
[354417943,1740480638587,-500.0,0.00120547,120]
[354417945,1740480638598,-500.0,0.00120547,120]
[354417947,1740480638607,-500.0,0.00120547,120]
[354417949,1740480638619,-500.0,0.00120547,120]
[354417951,1740480638628,-500.0,0.00120547,120]
[354417953,1740480638637,-500.0,0.00120547,120]
[354417955,1740480638648,-500.0,0.00120547,120]
[354417957,1740480638657,-500.0,0.00120547,120]
[354417959,1740480638666,-500.0,0.00120547,120]
[354417961,1740480638675,-500.0,0.00120547,120]
[354417963,1740480638684,-500.0,0.00120547,120]
[354417965,1740480638694,-511.08541298,0.00120547,120]
[354417967,1740480638703,-511.59445015,0.00120547,120]
[354417969,1740480638712,-500.0,0.00120547,120]
[354417971,1740480638721,-500.0,0.00120547,120]
[354417973,1740480638730,-500.0,0.00120547,120]
[354417975,1740480638739,-1000.0,0.00120547,20]
[354417977,1740480638748,-512.81176448,0.00120547,30]
[354417979,1740480638757,-500.0,0.00120547,120]
[354417981,1740480638767,-500.0,0.00120547,120]
[354417983,1740480638776,-500.0,0.00120547,120]
[354417985,1740480638785,-500.0,0.00120547,120]
[354417988,1740480638797,-500.0,0.00120547,120]
[354417990,1740480638807,-500.0,0.00120547,120]
[354417992,1740480638817,-500.0,0.00120547,120]
[354417994,1740480638826,-533.7214849,0.00120547,120]
[354417996,1740480638835,-2837.22,0.00120547,120]
[354417998,1740480638845,-500.0,0.00120547,120]
[354417999,1740480638855,-500.0,0.00120547,120]
[354418001,1740480638864,-505.44862535,0.00120547,120]
[354418003,1740480638873,-500.0,0.00120547,120]
[354418005,1740480638882,-543.32,0.00120547,120]
[354418008,1740480638892,-500.0,0.00120547,120]
[354418009,1740480638901,-642.24,0.00120547,120]
[354418012,1740480638911,-630.05149407,0.00120547,120]
[354418014,1740480638920,-500.0,0.00120547,120]
[354418016,1740480638929,-500.0,0.00120547,120]
[354418018,1740480638939,-500.0,0.00120547,120]
[354418020,1740480638949,-500.0,0.00120547,120]
[354418022,1740480638958,-500.0,0.00120547,120]
[354418024,1740480638969,-580.0,0.00120547,120]
[354418026,1740480638978,-9220.63,0.00120547,7]
[354418028,1740480638988,-500.0,0.00120547,120]
[354418030,1740480638997,-500.0,0.00120547,120]
[354418032,1740480639007,-844.83,0.00120547,120]
[354418034,1740480639022,-524.35304366,0.00120547,120]
[354418036,1740480639033,-500.0,0.00120547,120]
[354418038,1740480639043,-281.171671,0.00120547,120]
[354418040,1740480639055,-1142.33,0.00120547,120]
[354418042,1740480639065,-191.73275166,0.00120547,120]
[354418044,1740480639075,-500.0,0.00120547,120]
[354418046,1740480639084,-500.0,0.00120547,120]
[354418048,1740480639095,-492.96898319,0.00120547,120]
[354418050,1740480639106,-500.0,0.00120547,120]
[354418052,1740480639116,-500.0,0.00120547,30]
[354418054,1740480639125,-500.0,0.00120547,120]
[354418056,1740480639135,-500.0,0.00120547,120]
[354418059,1740480639145,-503.94482188,0.00120547,120]
[354418061,1740480639155,-500.0,0.00120547,120]
[354418063,1740480639165,-500.0,0.00120547,120]
[354418065,1740480639175,-500.0,0.00120547,120]
[354418067,1740480639184,-500.0,0.00120547,120]
[354418069,1740480639194,-500.0,0.00120547,120]
[354418071,1740480639203,-500.0,0.00120547,120]
[354418074,1740480639212,-605.76,0.00120547,120]
[354418078,1740480639222,-500.0,0.00120547,120]
[354418081,1740480639231,-500.0,0.00120547,120]
[354418084,1740480639240,-402.26113418,0.00120547,120]
[354418086,1740480639250,-500.0,0.00120547,120]
[354418088,1740480639259,-500.0,0.00120547,120]
[354418090,1740480639269,-3079.36,0.00120547,120]
[354418092,1740480639278,-500.0,0.00120547,120]
[354418094,1740480639288,-510.59709084,0.00120547,120]
[354418096,1740480639298,-533.80344821,0.00120547,120]
[354418099,1740480639307,-500.0,0.00120547,120]
[354418109,1740480639394,-742.1,0.00120547,120]
[354418111,1740480639404,-500.0,0.00120547,120]
[354418113,1740480639413,-500.0,0.00120547,120]
[354418116,1740480639423,-500.0,0.00120547,120]
[354418118,1740480639433,-500.0,0.00120547,120]
[354418121,1740480639442,-500.0,0.00120547,120]
[354418123,1740480639452,-500.0,0.00120547,120]
[354418125,1740480639462,-500.0,0.00120547,120]
[354418127,1740480639472,-500.0,0.00120547,120]
[354418129,1740480639482,-500.0,0.00120547,3]
[354418131,1740480639491,-500.0,0.00120547,120]
[354418133,1740480639501,-500.0,0.00120547,120]
[354418135,1740480639511,-600.0,0.00120547,120]
[354418137,1740480639521,-646.08,0.00120547,120]
[354418139,1740480639531,-500.0,0.00120547,120]
[354418141,1740480639541,-500.0,0.00120547,120]
[354418143,1740480639551,-505.13906612,0.00120547,120]
[354418145,1740480639560,-500.0,0.00120547,120]
[354418147,1740480639570,-500.0,0.00120547,120]
[354418149,1740480639579,-500.0,0.00120547,120]
[354418151,1740480639589,-500.0,0.00120547,120]
[354418153,1740480639602,-500.0,0.00120547,120]
[354418155,1740480639611,-500.0,0.00120547,120]
[354418157,1740480639621,-500.0,0.00120547,120]
[354418159,1740480639630,-500.0,0.00120547,120]
[354418161,1740480639640,-500.0,0.00120547,120]
[354418163,1740480639649,-500.0,0.00120547,120]
[354418165,1740480639659,-500.0,0.00120547,120]
[354418167,1740480639668,-500.0,0.00120547,120]
[354418169,1740480639677,-500.0,0.00120547,120]
[354418171,1740480639687,-500.0,0.00120547,120]
[354418173,1740480639696,-500.0,0.00120547,120]
[354418175,1740480639705,-500.0,0.00120547,120]
[354418177,1740480639715,-500.0,0.00120547,120]
[354418179,1740480639724,-500.0,0.00120547,120]
[354418181,1740480639733,-500.0,0.00120547,120]
[354418183,1740480639742,-500.0,0.00120547,120]
[354418185,1740480639751,-500.0,0.00120547,120]
[354418187,1740480639761,-500.0,0.00120547,120]
[354418189,1740480639770,-802.11,0.00120547,120]
[354418191,1740480639779,-632.63,0.00120547,120]
[354418193,1740480639788,-840.18,0.00120547,120]
[354418195,1740480639798,-174.8062211,0.00120547,120]
[354418197,1740480639807,-500.0,0.00120547,120]
[354418199,1740480639817,-382.18,0.00120547,120]
[354418201,1740480639826,-500.0,0.00120547,120]
[354418203,1740480639836,-500.0,0.00120547,120]
[354418205,1740480639846,-199.18,0.00120548,120]
[354418207,1740480639855,-199.18,0.00120548,120]
[354418209,1740480639865,-199.18,0.00120548,120]
[354418211,1740480639875,-199.15,0.00120548,120]
[354418213,1740480639884,-199.18,0.00120548,120]
[354418215,1740480639895,-150.41,0.00120548,120]
[354418217,1740480639905,-500.0,0.00120548,120]
[354418219,1740480639915,-500.0,0.00120548,120]
[354418221,1740480639924,-150.41,0.00120822,120]
[354418223,1740480639934,-500.0,0.00120822,120]
[354418225,1740480639944,-500.0,0.00120822,120]
[354418227,1740480639954,-150.41,0.00121096,120]
[354418229,1740480639964,-500.0,0.00121096,120]
[354418231,1740480639974,-500.0,0.00121096,120]
[354418233,1740480639983,-247.95,0.0012137,120]
[354418235,1740480639993,-500.0,0.0012137,120]
[354418237,1740480640003,-500.0,0.0012137,120]
[354418239,1740480640013,-151.0,0.001285,76]
[354418242,1740480640026,-150.0,0.00134845,120]
[354418244,1740480640036,-352.526,0.00134845,120]
[354418246,1740480640046,-481.787,0.00134845,120]
[354418248,1740480640055,-2264.065,0.00134845,120]
[354418250,1740480640067,-1000.0,0.00136986,120]
[354418252,1740480640078,-1000.11327269,0.00136986,120]
[354418254,1740480640088,-35247.75,0.00137,30]
[354418256,1740480640102,-151.0,0.001389,78]
[354418258,1740480640112,-488.67,0.00139,60]
[354418260,1740480640121,-1000.0,0.0014,120]
[354418262,1740480640131,-151.0,0.001416,64]
[354418264,1740480640141,-176.7646336,0.00141698,120]
[354418266,1740480640151,-862.74,0.00142,60]
[354418268,1740480640160,-154.35,0.00142,60]
[354418270,1740480640169,-160.19898007,0.00146196,120]
[354418272,1740480640179,-500.0,0.00147945,120]
[354418274,1740480640188,-500.0,0.00147945,120]
[354418276,1740480640198,-500.0,0.00147945,120]
[354418278,1740480640207,-500.0,0.00147945,120]
[354418280,1740480640217,-638.50748295,0.00147945,120]
[354418282,1740480640227,-500.0,0.00147945,120]
[354418284,1740480640236,-748.21,0.00147945,120]
[354418287,1740480640247,-500.0,0.00147945,120]
[354418288,1740480640256,-500.0,0.00147945,120]
[354418290,1740480640266,-600.0,0.00147945,120]
[354418292,1740480640276,-500.0,0.00147945,120]
[354418294,1740480640286,-500.0,0.00147945,120]
[354418296,1740480640295,-500.0,0.00147945,120]
[354418298,1740480640305,-981.13,0.00147945,120]
[354418300,1740480640316,-500.0,0.00147945,120]
[354418302,1740480640326,-500.0,0.00147945,120]
[354418304,1740480640335,-509.24318373,0.00147945,120]
[354418306,1740480640345,-500.0,0.00147945,120]
[354418308,1740480640355,-500.0,0.00147945,120]
[354418310,1740480640364,-500.0,0.00147945,120]
[354418312,1740480640374,-500.0,0.00147945,120]
[354418314,1740480640383,-500.0,0.00147945,120]
[354418316,1740480640392,-506.97268083,0.00147945,120]
[354418318,1740480640402,-500.0,0.00147945,120]
[354418320,1740480640411,-505.57717089,0.00147945,120]
[354418322,1740480640421,-500.0,0.00147945,120]
[354418324,1740480640431,-511.73781525,0.00147945,120]
[354418326,1740480640440,-500.0,0.00147945,120]
[354418328,1740480640450,-500.0,0.00147945,120]
[354418329,1740480640459,-500.0,0.00147945,120]
[354418330,1740480640469,-2837.22,0.00147945,120]
[354418331,1740480640478,-500.0,0.00147945,120]
[354418332,1740480640487,-512.47507902,0.00147945,120]
[354418333,1740480640497,-500.0,0.00147945,120]
[354418334,1740480640506,-500.0,0.00147945,120]
[354418335,1740480640515,-642.24,0.00147945,120]
[354418336,1740480640525,-500.0,0.00147945,120]
[354418337,1740480640534,-500.0,0.00147945,120]
[354418338,1740480640544,-500.0,0.00147945,120]
[354418339,1740480640553,-500.0,0.00147945,120]
[354418340,1740480640563,-9220.63,0.00147945,7]
[354418341,1740480640574,-500.0,0.00147945,120]
[354418342,1740480640583,-500.0,0.00147945,120]
[354418344,1740480640593,-844.83,0.00147945,120]
[354418346,1740480640604,-500.0,0.00147945,120]
[354418348,1740480640613,-1142.33,0.00147945,120]
[354418349,1740480640623,-500.0,0.00147945,120]
[354418352,1740480640633,-510.266812,0.00147945,120]
[354418354,1740480640643,-508.46480841,0.00147945,120]
[354418356,1740480640652,-500.0,0.00147945,120]
[354418358,1740480640662,-500.0,0.00147945,120]
[354418360,1740480640672,-500.0,0.00147945,120]
[354418362,1740480640681,-500.0,0.00147945,120]
[354418363,1740480640691,-500.0,0.00147945,120]
[354418366,1740480640701,-500.0,0.00147945,120]
[354418368,1740480640711,-500.0,0.00147945,120]
[354418370,1740480640722,-605.76,0.00147945,120]
[354418372,1740480640732,-500.0,0.00147945,120]
[354418374,1740480640742,-505.39902178,0.00147945,120]
[354418376,1740480640752,-3079.36,0.00147945,120]
[354418378,1740480640762,-500.0,0.00147945,120]
[354418380,1740480640771,-506.8959323,0.00147945,120]
[354418382,1740480640781,-742.1,0.00147945,120]
[354418384,1740480640791,-500.0,0.00147945,120]
[354418386,1740480640801,-500.0,0.00147945,120]
[354418388,1740480640811,-500.0,0.00147945,120]
[354418390,1740480640821,-500.0,0.00147945,120]
[354418392,1740480640831,-500.0,0.00147945,120]
[354418394,1740480640842,-500.0,0.00147945,120]
[354418396,1740480640859,-500.0,0.00147945,120]
[354418398,1740480640870,-500.0,0.00147945,120]
[354418400,1740480640880,-500.0,0.00147945,3]
[354418402,1740480640891,-500.0,0.00147945,120]
[354418404,1740480640901,-500.0,0.00147945,120]
[354418414,1740480640985,-646.08,0.00147945,120]
[354418416,1740480640995,-500.0,0.00147945,120]
[354418418,1740480641005,-500.0,0.00147945,120]
[354418420,1740480641018,-500.0,0.00147945,120]
[354418422,1740480641028,-500.0,0.00147945,120]
[354418424,1740480641038,-500.0,0.00147945,120]
[354418426,1740480641047,-500.0,0.00147945,120]
[354418428,1740480641057,-500.0,0.00147945,120]
[354418430,1740480641066,-500.0,0.00147945,120]
[354418432,1740480641075,-500.0,0.00147945,120]
[354418434,1740480641084,-500.0,0.00147945,120]
[354418436,1740480641098,-622.44305527,0.00147945,120]
[354418438,1740480641108,-500.0,0.00147945,120]
[354418440,1740480641117,-500.0,0.00147945,120]
[354418442,1740480641127,-500.0,0.00147945,120]
[354418444,1740480641136,-500.0,0.00147945,120]
[354418446,1740480641146,-504.56142518,0.00147945,120]
[354418448,1740480641156,-500.0,0.00147945,120]
[354418450,1740480641165,-500.0,0.00147945,120]
[354418452,1740480641175,-500.0,0.00147945,120]
[354418454,1740480641185,-500.0,0.00147945,120]
[354418456,1740480641194,-500.0,0.00147945,120]
[354418458,1740480641203,-802.11,0.00147945,120]
[354418460,1740480641213,-632.63,0.00147945,120]
[354418462,1740480641222,-840.18,0.00147945,120]
[354418464,1740480641232,-500.0,0.00147945,120]
[354418466,1740480641242,-578.0727,0.00147945,120]
[354418468,1740480641252,-622.0,0.00147945,120]
[354418470,1740480641261,-176.7646336,0.00148445,120]
[354418472,1740480641271,-500.0,0.001488,21]
[354418474,1740480641281,-500.0,0.001488,120]